fUSD/lending_fUSD_20260109
["ID","MTS","AMOUNT","RATE_DAILY","PERIOD"]
[401110994,1767939042289,-500.0,0.00017973,2]
[401110995,1767939042298,-433.25363423,0.00017973,2]
[401110996,1767939042308,-500.0,0.00017973,2]
[401110997,1767939042319,-500.0,0.00017973,2]
[401110998,1767939042328,-500.0,0.00017973,2]
[401110999,1767939042337,-500.0,0.00017973,2]
[401111000,1767939042346,-500.0,0.00017973,2]
[401111001,1767939042355,-500.0,0.00017973,2]
[401111002,1767939042363,-190.88377587,0.00017973,2]
[401111003,1767939042372,-500.0,0.00017973,2]
[401111004,1767939042381,-500.0,0.00017973,2]
[401111005,1767939042390,-500.0,0.00017973,2]
[401111006,1767939042400,-500.0,0.00017973,2]
[401111007,1767939042409,-500.0,0.00017973,2]
[401111008,1767939042419,-500.94146496,0.00017973,2]
[401111009,1767939042428,-500.0,0.00017973,2]
[401111010,1767939042437,-500.0,0.00017973,2]
[401111011,1767939042446,-500.0,0.00017973,2]
[401111012,1767939042455,-500.0,0.00017973,2]
[401111013,1767939042464,-500.0,0.00017973,2]
[401111014,1767939042473,-500.0,0.00017973,2]
[401111015,1767939042482,-500.0,0.00017973,2]
[401111016,1767939042491,-500.0,0.00017973,2]
[401111017,1767939042500,-500.0,0.00017973,2]
[401111018,1767939042510,-500.0,0.00017973,2]
[401111019,1767939042521,-500.0,0.00017973,2]
[401111020,1767939042531,-500.0,0.00017973,2]
[401111021,1767939042540,-165.3256661,0.00017973,2]
[401111022,1767939042550,-587.72916305,0.00017973,2]
[401111023,1767939042568,-500.0,0.00017973,2]
[401111024,1767939042579,-182.86859792,0.00017973,2]
[401111025,1767939042589,-500.0,0.00017973,2]
[401111026,1767939042603,-500.0,0.00017973,2]
[401111027,1767939042612,-500.0,0.00017973,2]
[401111028,1767939042621,-500.0,0.00017973,2]
[401111029,1767939042631,-546.15438132,0.00017973,2]
[401111030,1767939042643,-500.0,0.00017973,2]
[401111031,1767939042652,-208.06887662,0.00017973,2]
[401111032,1767939042661,-554.86072459,0.00017973,2]
[401111033,1767939042671,-500.0,0.00017973,2]
[401111034,1767939042680,-500.51815801,0.00017973,2]
[401111035,1767939042689,-500.0,0.00017973,2]
[401111036,1767939042698,-500.0,0.00017973,2]
[401111037,1767939042708,-2493.79008389,0.00017973,2]
[401111038,1767939042718,-631.06,0.00017973,2]
[401111039,1767939042729,-150.0,0.00017973,2]
[401111040,1767939042738,-150.0,0.00017973,2]
[401111041,1767939042748,-239.27383128,0.0001799,2]
[401111042,1767939042759,-239.27383128,0.0001799,2]
[401111043,1767939042769,-53976.7565507,0.00017996,2]
[401111044,1767939042780,-300.0,0.00017999,2]
[401111045,1767939042790,-300.0,0.00017999,2]
[401111046,1767939042799,-300.0,0.00017999,2]
[401111047,1767939042808,-300.0,0.00017999,2]
[401111048,1767939042818,-548.49326873,0.00017999,2]
[401111049,1767939042828,-300.0,0.00017999,2]
[401111050,1767939042844,-150.0,0.00017999,2]
[401111051,1767939042853,-150.0,0.00017999,2]
[401111052,1767939042865,-300.0,0.00017999,2]
[401111053,1767939042874,-666.0,0.00017999,2]
[401111054,1767939042885,-7821.77449927,0.00017999,2]
[401111055,1767939042897,-336868.70871248,0.00018,2]
[401111056,1767939042907,-448742.96010499,0.00018,2]
[401111057,1767939042941,-292460.51591405,0.00018,2]
[401111058,1767939042950,-105370.64318368,0.00018,2]
[401111059,1767939042959,-498285.25791718,0.00018,2]
[401111060,1767939042969,-177.0,0.00018,2]
[401111061,1767939042979,-1439860.74466721,0.00018,2]
[401111062,1767939043004,-10229.70607684,0.00018,2]
[401111063,1767939043031,-266661.77631133,0.00018,2]
[401111064,1767939045749,-482.82,0.00017041,2]
[401111065,1767939045759,-491.56800757,0.00017041,2]
[401111066,1767939045770,-170.01199243,0.00017041,2]
[401111067,1767939045780,-338.88905217,0.00017724,2]
[401111068,1767939045820,-1990.76325609,0.00017724,2]
[401111129,1767939346131,-500.0,0.00027,120]
[401111130,1767939346185,-2552.47747355,0.0002739,120]
[401111131,1767939346250,-500.0,0.00028,120]
[401111132,1767939346301,-341.54434489,0.00028,120]
[401111133,1767939346354,-798.56685731,0.00028297,120]
[401111134,1767939346407,-500.0,0.000284,120]
[401111135,1767939346460,-500.0,0.00028767,120]
[401111136,1767939346510,-500.0,0.00028822,120]
[401111137,1767939346561,-505.64849969,0.00028877,120]
[401111138,1767939346619,-500.0,0.0003,120]
[401111139,1767939346667,-500.0,0.0003,120]
[401111140,1767939346716,-230.2086536,0.0003,120]
[401111141,1767939346764,-20500.0,0.0003,120]
[401111142,1767939346813,-520.46,0.0003,120]
[401111143,1767939346866,-520.46,0.00030029,120]
[401111144,1767939346918,-520.46,0.00030059,120]
[401111145,1767939346972,-520.46,0.0003009,120]
[401111146,1767939347029,-520.46,0.00030123,120]
[401111147,1767939347150,250.10966303,0.00027397,120]
[401111149,1767939555203,5000.0,0.00030137,120]
[401111153,1767939801595,590.262916,0.00026599,120]
[401111156,1767940005119,-187.53235164,0.00013077,2]
[401111157,1767940032105,-222.12327296,0.00012977,2]
[401111158,1767940032127,-480.46764836,0.00013077,2]
[401111159,1767940032148,-277.0,0.00013077,2]
[401111160,1767940032169,-1200.0,0.00013077,2]
[401111161,1767940032193,-11428.48557949,0.00013078,2]
[401111162,1767940032213,-1100.0,0.00013078,2]
[401111163,1767940032235,-166.66,0.00013625,2]
[401111164,1767940032256,-302.5359874,0.00013756,2]
[401111165,1767940032277,-1100.0,0.00013766,2]
[401111166,1767940032298,-166.66,0.00013912,2]
[401111167,1767940032319,-166.66,0.00014199,2]
[401111168,1767940032340,-195.94804941,0.00014275,2]
[401111169,1767940032360,-300.0,0.00014275,2]
[401111170,1767940032381,-1680.0,0.00014384,2]
[401111171,1767940032401,-841.55613303,0.00014385,2]
[401111172,1767940032423,-166.66,0.00014485,2]
[401111173,1767940032451,-500.0,0.00014489,2]
[401111174,1767940032478,-500.0,0.00014489,2]
[401111175,1767940032503,-618.97842115,0.00014489,2]
[401111176,1767940032523,-1100.0,0.0001449,2]
[401111177,1767940032543,-500.0,0.00014763,2]
[401111178,1767940032565,-503.2370208,0.00014763,2]
[401111179,1767940032587,-500.0,0.00014763,2]
[401111180,1767940032609,-166.66,0.00014772,2]
[401111181,1767940032630,-150.0,0.0001482,2]
[401111182,1767940032652,-187.53138757,0.00015,2]
[401111183,1767940032673,-300.0,0.00015037,2]
[401111184,1767940032693,-791.48902331,0.00015038,2]
[401111194,1767940231855,-1687.75,0.00014652,2]
[401111196,1767940231865,-1687.75,0.00014652,2]
[401111197,1767940231873,-210.14021936,0.00014661,2]
[401111198,1767940231885,-989.85978064,0.00014661,2]
[401111199,1767940231894,-150.0,0.00014661,2]
[401111200,1767940231903,-16903.04897793,0.00014662,2]
[401111201,1767940231974,-1010.2,0.00014662,2]
[401111202,1767940231985,-1055.75751354,0.00014662,2]
[401111203,1767940231996,-6669.40151719,0.00014662,2]
[401111204,1767940232044,-974.0,0.00014662,2]
[401111211,1767940237931,-227.30352778,0.00014661,2]
[401111212,1767940237941,-668.21796612,0.00014662,2]
[401111213,1767940237952,-638.6875304,0.00014662,2]
[401111214,1767940237963,-253.4450449,0.00014662,2]
[401111215,1767940237973,-12544.9441137,0.00014662,2]
[401111216,1767940237984,-17814.0222797,0.00014662,2]
[401111217,1767940237998,-1199.44426882,0.00014662,2]
[401111218,1767940238009,-1260.78888652,0.00014662,2]
[401111223,1767940238284,-3575.46304286,0.00014662,2]
[401111225,1767940238296,-11533.43298095,0.00014662,2]
[401111228,1767940238307,-36052.00000001,0.00014662,2]
[401111230,1767940238318,-1364.2629872,0.00014662,2]
[401111234,1767940238347,-722.14799494,0.00014662,2]
[401111236,1767940238357,-12233.33934785,0.00014662,2]
[401111415,1767940240203,-873527.39554737,0.00014662,2]
[401111417,1767940240212,-500.0,0.00014763,2]
[401111419,1767940240221,-290.7727,0.00015038,2]
[401111421,1767940240230,-236.5897,0.00015038,2]
[401111423,1767940240239,-2500.0,0.00015038,2]
[401111425,1767940240248,-162.92867624,0.00015053,2]
[401111427,1767940240257,-404.81624944,0.00015053,2]
[401111428,1767940240266,-1704.18581667,0.00015053,2]
[401111430,1767940240275,-6860.56672343,0.00015053,2]
[401111432,1767940240283,-166.66,0.00015059,2]
[401111434,1767940240292,-202.03636675,0.00015129,2]
[401111436,1767940240301,-151.0,0.00015129,2]
[401111438,1767940240310,-151.0,0.00015129,2]
[401111439,1767940240318,-151.0,0.00015129,2]
[401111441,1767940240328,-151.0,0.00015129,2]
[401111443,1767940240338,-151.0,0.00015129,2]
[401111445,1767940240347,-151.0,0.00015129,2]
[401111447,1767940240356,-151.0,0.00015129,2]
[401111449,1767940240365,-151.0,0.00015129,2]
[401111451,1767940240374,-151.0,0.00015129,2]
[401111452,1767940240383,-151.0,0.00015129,2]
[401111454,1767940240392,-151.0,0.00015129,2]
[401111456,1767940240402,-151.0,0.00015129,2]
[401111458,1767940240410,-500.0,0.00015137,2]
[401111460,1767940240420,-500.0,0.00015137,2]
[401111462,1767940240430,-500.0,0.00015137,2]
[401111464,1767940240439,-150.0,0.00015137,2]
[401111465,1767940240448,-229.16053007,0.00015153,2]
[401111467,1767940240457,-1100.0,0.00015253,2]
[401111469,1767940240467,-1000.0,0.0001531,2]
[401111471,1767940240476,-855.79917375,0.0001531,2]
[401111473,1767940240485,-1704.18581658,0.00015369,2]
[401111475,1767940240494,-6860.56672342,0.00015369,2]
[401111477,1767940240503,-1704.18581658,0.00015686,2]
[401111478,1767940240513,-6860.56672342,0.00015686,2]
[401111480,1767940240522,-255.0,0.0001579,2]
[401111482,1767940240531,-151.0,0.00015848,2]
[401111484,1767940240540,-151.0,0.00015848,2]
[401111486,1767940240550,-1500.0,0.00015858,2]
[401111488,1767940240559,-999.0,0.00015931,3]
[401111490,1767940240567,-200.447904,0.00016,2]
[401111491,1767940240577,-500.0,0.00016002,2]
[401111493,1767940240586,-1704.18581658,0.00016002,2]
[401111495,1767940240595,-6860.56672342,0.00016002,2]
[401111497,1767940240604,-239.6,0.00016053,2]
[401111499,1767940240614,-1100.0,0.00016056,2]
[401111501,1767940240622,-1680.0,0.00016128,2]
[401111503,1767940240631,-3558.56,0.00016174,2]
[401111504,1767940240640,-5000.0082532,0.000162,5]
[401111506,1767940240650,-1704.18581658,0.00016318,2]
[401111508,1767940240659,-6860.56672342,0.00016318,2]
[401111510,1767940240668,-166.66,0.00016339,2]
[401111512,1767940240677,-200.0,0.0001634,2]
[401111514,1767940240686,-2000.0,0.00016406,2]
[401111516,1767940240695,-1000.0,0.00016438,2]
[401111518,1767940240704,-1000.0,0.00016438,2]
[401111520,1767940240714,-1000.0,0.00016438,2]
[401111521,1767940240723,-207.79285348,0.00016438,2]
[401111523,1767940240732,-164.76,0.0001644,2]
[401111525,1767940240742,-164.76,0.0001644,2]
[401111527,1767940240751,-952.4,0.00016505,2]
[401111529,1767940240760,-600.0,0.00016542,2]
[401111531,1767940240769,-600.0,0.00016542,2]
[401111533,1767940240779,-600.0,0.00016542,2]
[401111535,1767940240788,-600.0,0.00016542,2]
[401111536,1767940240797,-600.0,0.00016542,2]
[401111538,1767940240806,-359.61007335,0.000166,2]
[401111540,1767940240815,-1704.18581658,0.00016635,2]
[401111542,1767940240824,-6860.56672342,0.00016635,2]
[401111544,1767940240833,-952.4,0.00016641,2]
[401111546,1767940240842,-482.82,0.00016741,2]
[401111547,1767940240850,-469.60768673,0.00016747,2]
[401111549,1767940240860,-952.4,0.00016777,2]
[401111551,1767940240869,-16740.34959736,0.00016777,2]
[401111553,1767940240879,-150.0,0.00016803,2]
[401111555,1767940240888,-482.82,0.00016841,2]
[401111557,1767940240898,-1100.0,0.00016901,2]
[401111559,1767940240907,-952.4,0.00016913,2]
[401111561,1767940240916,-482.82,0.00016941,2]
[401111563,1767940240925,-239.6,0.00016945,2]
[401111564,1767940240934,-1704.18581658,0.00016951,2]
[401111566,1767940240943,-6860.56672342,0.00016951,2]
[401111568,1767940240952,-500.0,0.00016954,2]
[401111570,1767940240962,-2000.61975215,0.00016989,2]
[401111572,1767940240971,-1020.08839075,0.00017,2]
[401111574,1767940240981,-250.0,0.00017,2]
[401111576,1767940240990,-160.0,0.00017,2]
[401111578,1767940240999,-433.0,0.00017007,2]
[401111580,1767940241008,-908.88,0.00017041,2]
[401111582,1767940241017,-661.58,0.00017041,2]
[401111583,1767940241027,-661.58,0.00017041,2]
[401111585,1767940241036,-661.58,0.00017041,2]
[401111587,1767940241045,-661.58,0.00017041,2]
[401111589,1767940241054,-661.58,0.00017041,2]
[401111591,1767940241063,-661.58,0.00017041,2]
[401111592,1767940241073,-661.58,0.00017041,2]
[401111594,1767940241083,-621.61,0.00017041,2]
[401111596,1767940241092,-482.82,0.00017041,2]
[401111598,1767940241101,-482.82,0.00017041,2]
[401111600,1767940241110,-482.82,0.00017041,2]
[401111602,1767940241119,-482.82,0.00017041,2]
[401111604,1767940241128,-482.82,0.00017041,2]
[401111606,1767940241137,-952.4,0.00017049,2]
[401111608,1767940241146,-157.78803464,0.00017049,2]
[401111609,1767940241155,-578.20924308,0.00017099,2]
[401111611,1767940241164,-151.0,0.00017099,2]
[401111613,1767940241174,-553.64373807,0.00017099,2]
[401111615,1767940241184,-620.0,0.00017099,2]
[401111617,1767940241193,-322.6107,0.00017099,2]
[401111619,1767940241202,-303.65393209,0.00017099,2]
[401111621,1767940241211,-150.0,0.00017178,2]
[401111622,1767940241220,-150.0,0.00017178,2]
[401111624,1767940241229,-150.0,0.00017178,2]
[401111626,1767940241239,-150.0,0.00017178,2]
[401111628,1767940241248,-179.09,0.00017178,2]
[401111629,1767940241257,-150.0,0.00017178,2]
[401111630,1767940241267,-300.0,0.00017178,2]
[401111631,1767940241276,-952.4,0.00017185,2]
[401111632,1767940241285,-166.66,0.00017238,2]
[401111633,1767940241294,-1704.18581658,0.00017267,2]
[401111634,1767940241304,-6860.56672342,0.00017267,2]
[401111635,1767940241313,-952.4,0.0001732,2]
[401111636,1767940241323,-152.0,0.00017362,3]
[401111637,1767940241333,-952.4,0.00017456,2]
[401111638,1767940241342,-152.0,0.00017482,4]
[401111639,1767940241351,-1601.1452557,0.000175,2]
[401111640,1767940241361,-863.72,0.00017526,2]
[401111641,1767940241370,-168.0,0.00017561,2]
[401111642,1767940241380,-1704.18581658,0.00017584,2]
[401111643,1767940241390,-6860.56672342,0.00017584,2]
[401111644,1767940241399,-952.4,0.00017592,2]
[401111645,1767940241408,-152.0,0.00017603,5]
[401111646,1767940241421,-870.99025009,0.0001764,2]
[401111648,1767940241430,-151.0,0.00017647,2]
[401111650,1767940241439,-574.12855637,0.00017647,2]
[401111652,1767940241449,-2493.79008389,0.00017673,2]
[401111654,1767940241459,-1323.16,0.000177,2]
[401111656,1767940241468,-779.93594743,0.000177,2]
[401111658,1767940241477,-1000.0,0.000177,2]
[401111660,1767940241487,-168.0,0.0001771,2]
[401111661,1767940241496,-152.0,0.00017724,6]
[401111664,1767940241505,-952.4,0.00017728,2]
[401111666,1767940241514,-2351.0,0.0001774,2]
[401111668,1767940241523,-1000.0,0.00017756,2]
[401111669,1767940241533,-239.27383128,0.0001779,2]
[401111671,1767940241542,-1100.0,0.00017791,2]
[401111674,1767940241552,-661.58,0.000178,2]
[401111675,1767940241560,-2000.0,0.000178,2]
[401111677,1767940241570,-43709.14658721,0.000178,2]
[401111679,1767940241579,-743.964,0.00017808,2]
[401111682,1767940241590,-3796.0,0.00017824,2]
[401111684,1767940241599,-497.09005,0.0001783,2]
[401111697,1767940241895,-239.6,0.00017837,2]
[401111698,1767940241905,-152.0,0.00017845,7]
[401111699,1767940241915,-2000.0,0.00017856,2]
[401111700,1767940241924,-952.4,0.00017864,2]
[401111701,1767940241933,-497.09006,0.0001788,2]
[401111702,1767940241942,-631.06,0.00017889,2]
[401111703,1767940241951,-661.58,0.000179,2]
[401111704,1767940241960,-10000.0,0.000179,2]
[401111705,1767940241969,-162.92867623,0.000179,2]
[401111706,1767940241979,-565.17771938,0.000179,2]
[401111707,1767940241988,-1000.0,0.000179,2]
[401111708,1767940241997,-1704.18581658,0.000179,2]
[401111709,1767940242006,-6860.56672342,0.000179,2]
[401111710,1767940242015,-500.0,0.000179,2]
[401111711,1767940242024,-500.0,0.000179,2]
[401111712,1767940242036,-500.0,0.000179,2]
[401111713,1767940242044,-500.0,0.000179,2]
[401111714,1767940242053,-500.0,0.000179,2]
[401111715,1767940242062,-500.0,0.000179,2]
[401111716,1767940242071,-500.0,0.000179,2]
[401111717,1767940242080,-500.0,0.000179,2]
[401111718,1767940242090,-500.0,0.000179,2]
[401111719,1767940242099,-500.0,0.000179,2]
[401111720,1767940242108,-500.0,0.000179,2]
[401111721,1767940242117,-500.0,0.000179,2]
[401111722,1767940242126,-500.0,0.000179,2]
[401111723,1767940242135,-500.0,0.000179,2]
[401111724,1767940242144,-500.0,0.000179,2]
[401111725,1767940242154,-500.0,0.000179,2]
[401111726,1767940242163,-500.0,0.000179,2]
[401111727,1767940242172,-500.0,0.000179,2]
[401111728,1767940242182,-500.0,0.000179,2]
[401111729,1767940242192,-500.0,0.000179,2]
[401111730,1767940242203,-497.09006,0.0001793,2]
[401111731,1767940242213,-152.0,0.00017966,8]
[401111732,1767940242223,-3796.0,0.00017967,2]
[401111733,1767940242232,-500.0,0.00017973,2]
[401111734,1767940242241,-500.0,0.00017973,2]
[401111735,1767940242250,-500.0,0.00017973,2]
[401111736,1767940242260,-500.0,0.00017973,2]
[401111738,1767940242269,-500.0,0.00017973,2]
[401111739,1767940242278,-500.0,0.00017973,2]
[401111740,1767940242287,-500.0,0.00017973,2]
[401111741,1767940242296,-500.0,0.00017973,2]
[401111742,1767940242305,-500.0,0.00017973,2]
[401111743,1767940242314,-500.0,0.00017973,2]
[401111744,1767940242324,-500.0,0.00017973,2]
[401111745,1767940242333,-433.25363423,0.00017973,2]
[401111746,1767940242342,-500.0,0.00017973,2]
[401111747,1767940242351,-500.0,0.00017973,2]
[401111748,1767940242360,-500.0,0.00017973,2]
[401111749,1767940242370,-500.0,0.00017973,2]
[401111750,1767940242379,-500.0,0.00017973,2]
[401111751,1767940242389,-500.0,0.00017973,2]
[401111752,1767940242399,-500.0,0.00017973,2]
[401111753,1767940242408,-500.0,0.00017973,2]
[401111754,1767940242417,-500.0,0.00017973,2]
[401111755,1767940242426,-500.0,0.00017973,2]
[401111756,1767940242435,-500.0,0.00017973,2]
[401111757,1767940242445,-190.88377587,0.00017973,2]
[401111758,1767940242454,-500.0,0.00017973,2]
[401111759,1767940242463,-500.0,0.00017973,2]
[401111760,1767940242472,-500.94146496,0.00017973,2]
[401111761,1767940242481,-500.0,0.00017973,2]
[401111762,1767940242489,-500.0,0.00017973,2]
[401111763,1767940242499,-500.0,0.00017973,2]
[401111764,1767940242507,-500.0,0.00017973,2]
[401111765,1767940242516,-150.0,0.00017973,2]
[401111766,1767940242525,-500.0,0.00017973,2]
[401111767,1767940242535,-500.0,0.00017973,2]
[401111768,1767940242546,-554.86072459,0.00017973,2]
[401111769,1767940242556,-500.0,0.00017973,2]
[401111770,1767940242566,-500.51815801,0.00017973,2]
[401111771,1767940242578,-500.0,0.00017973,2]
[401111772,1767940242589,-208.06887662,0.00017973,2]
[401111773,1767940242599,-500.0,0.00017973,2]
[401111774,1767940242608,-500.0,0.00017973,2]
[401111775,1767940242618,-165.3256661,0.00017973,2]
[401111776,1767940242629,-500.0,0.00017973,2]
[401111777,1767940242639,-587.72916305,0.00017973,2]
[401111778,1767940242650,-500.0,0.00017973,2]
[401111779,1767940242660,-500.0,0.00017973,2]
[401111780,1767940242668,-500.0,0.00017973,2]
[401111781,1767940242677,-182.86859792,0.00017973,2]
[401111782,1767940242686,-500.0,0.00017973,2]
[401111783,1767940242696,-546.15438132,0.00017973,2]
[401111784,1767940242705,-500.0,0.00017973,2]
[401111785,1767940242715,-500.0,0.00017973,2]
[401111786,1767940242724,-150.0,0.00017973,2]
[401111787,1767940242733,-150.0,0.00017973,2]
[401111788,1767940242742,-205.18368685,0.00017977,2]
[401111789,1767940242751,-497.09005,0.0001798,2]
[401111790,1767940242760,-164.76,0.00017989,2]
[401111791,1767940242769,-239.27383128,0.0001799,2]
[401111792,1767940242778,-239.27383128,0.0001799,2]
[401111793,1767940242787,-164.76,0.0001799,2]
[401111794,1767940242796,-3796.0,0.00017992,2]
[401111795,1767940242805,-209.0,0.00017996,2]
[401111796,1767940242815,-369.03106911,0.00017999,2]
[401111797,1767940242823,-26755.7191734,0.00017999,2]
[401111798,1767940242832,-159572.4822764,0.00017999,2]
[401111799,1767940242843,-1006.3197,0.00017999,2]
[401111800,1767940242852,-300.0,0.00017999,2]
[401111801,1767940242861,-300.0,0.00017999,2]
[401111802,1767940242870,-359.08313245,0.00017999,2]
[401111803,1767940242880,-666.0,0.00017999,2]
[401111804,1767940242889,-300.0,0.00017999,2]
[401111805,1767940242898,-11541.22312061,0.00017999,2]
[401111806,1767940242907,-7824.46415432,0.00017999,2]
[401111807,1767940242916,-300.0,0.00017999,2]
[401111808,1767940242925,-666.0,0.00017999,2]
[401111809,1767940242934,-150.0,0.00017999,2]
[401111810,1767940242943,-150.0,0.00017999,2]
[401111811,1767940242952,-300.0,0.00017999,2]
[401111812,1767940242961,-548.49326873,0.00017999,2]
[401111813,1767940242970,-9061.0,0.00018,2]
[401111814,1767940242979,-749872.09386202,0.00018,2]
[401111822,1767940244644,-380.05252024,0.00018,2]
[401111823,1767940244708,-328.86822747,0.00018,2]
[401111826,1767940245892,-151.0,0.00015866,2]
[401111827,1767940245903,-151.0,0.00015866,2]
[401111828,1767940245913,-482.82,0.00017041,2]
[401111829,1767940245922,-1251.62175731,0.00018,2]
[401111830,1767940246063,-1876.8110829,0.00018,2]
[401111831,1767940256142,761.96089592,0.0003,120]
[401111835,1767940381997,401.03275259,0.00030137,120]
[401111838,1767940610006,209.0,9.989e-05,2]
[401111840,1767940817137,162.0,0.000301,120]
[401111841,1767940825387,163.5,0.000301,120]
[401111842,1767940837419,163.5,0.000301,120]
[401111843,1767940852225,163.5,0.000301,120]
[401111844,1767940863152,164.1,0.000301,120]
[401111857,1767941063808,500.0,0.00030137,120]
[401111858,1767941254192,-743.964,0.00014737,2]
[401111859,1767941254213,-500.0,0.00014763,2]
[401111860,1767941254234,-500.0,0.00014763,2]
[401111861,1767941254257,-572.03852483,0.00014763,2]
[401111862,1767941254278,-272.0,0.00014763,2]
[401111863,1767941254297,-1852.42,0.00014838,2]
[401111864,1767941254318,-1200.0,0.00014937,2]
[401111865,1767941254339,-150.0,0.00014937,2]
[401111866,1767941254359,-860.3608,0.00014938,2]
[401111867,1767941254379,-290.7727,0.00014938,2]
[401111868,1767941254398,-236.5897,0.00014938,2]
[401111869,1767941254418,-1041.2232536,0.00014938,2]
[401111870,1767941404467,5000.0,0.00030137,120]
[401111928,1767941432880,-1858.162075,0.00014762,2]
[401111930,1767941432891,-500.0,0.00014763,2]
[401111932,1767941432900,-2048.79683749,0.00014838,2]
[401111934,1767941432910,-1200.0,0.00014935,2]
[401111936,1767941432919,-4035.54432729,0.00014936,2]
[401111941,1767941432956,-291.65158265,0.00014936,2]
[401112052,1767941438224,-500.0,0.00014935,2]
[401112053,1767941438233,-153.66043728,0.00014935,2]
[401112054,1767941438242,-500.0,0.00014935,2]
[401112055,1767941438251,-556.02860294,0.00014935,2]
[401112056,1767941438260,-500.0,0.00014935,2]
[401112057,1767941438269,-255.81142989,0.00014935,2]
[401112058,1767941438308,-244.18857011,0.00014935,2]
[401112059,1767941438317,-500.0,0.00014935,2]
[401112060,1767941438326,-500.0,0.00014935,2]
[401112061,1767941438335,-500.0,0.00014935,2]
[401112062,1767941438344,-577.74229826,0.00014935,2]
[401112063,1767941438353,-1187.05988772,0.00014936,2]
[401112065,1767941438420,-4314.88685927,0.00014936,2]
[401112236,1767941440319,-377.25071975,0.00014936,2]
[401112248,1767941440439,-989793.60662332,0.00014936,2]
[401112250,1767941440448,-1458.7767464,0.00014938,2]
[401112252,1767941440457,-162.92867624,0.00014938,2]
[401112253,1767941440466,-170.488088,0.00014938,2]
[401112255,1767941440475,-300.0,0.00015028,2]
[401112257,1767941440485,-202.03636675,0.00015029,2]
[401112259,1767941440494,-151.0,0.00015029,2]
[401112261,1767941440503,-151.0,0.00015029,2]
[401112263,1767941440512,-151.0,0.00015029,2]
[401112265,1767941440522,-151.0,0.00015029,2]
[401112267,1767941440531,-151.0,0.00015029,2]
[401112268,1767941440540,-151.0,0.00015029,2]
[401112270,1767941440550,-151.0,0.00015029,2]
[401112272,1767941440559,-151.0,0.00015029,2]
[401112274,1767941440568,-151.0,0.00015029,2]
[401112276,1767941440577,-151.0,0.00015029,2]
[401112278,1767941440590,-151.0,0.00015029,2]
[401112280,1767941440600,-151.0,0.00015029,2]
[401112282,1767941440609,-150.0,0.00015037,2]
[401112284,1767941440619,-1000.0,0.00015038,2]
[401112285,1767941440629,-500.0,0.00015137,2]
[401112287,1767941440639,-500.0,0.00015137,2]
[401112289,1767941440649,-500.0,0.00015137,2]
[401112291,1767941440658,-2048.79683742,0.00015178,2]
[401112293,1767941440667,-1000.0,0.0001531,2]
[401112295,1767941440676,-355.79917375,0.0001531,2]
[401112297,1767941440686,-170.48808796,0.00015432,2]
[401112298,1767941440695,-170.48808796,0.00015432,2]
[401112300,1767941440705,-2048.79683742,0.00015518,2]
[401112302,1767941440714,-151.0,0.00015797,2]
[401112304,1767941440723,-151.0,0.0001583,2]
[401112306,1767941440732,-1500.0,0.00015858,2]
[401112308,1767941440742,-2048.79683742,0.00015859,2]